Workbook

Sheet Template
A1: Tile_r1-c2_Region5_1283763464.tif | B1: =MID(A1,7,2) -> 1- | C1: 1 | E1: =MID(A1,9,4) -> c2_R | F1: 2 | H1: 1 | I1: 2 | L1: =I1*R1 -> 19250 | M1: =H1*S1 -> 9625 | N1: 0 | O1: Tile_r1-c2_Region5_1283763464.tif | R1: 9625 | S1: 9625 | T1: =CONCATENATE(O1," ", L1," ",M1," ",N1) -> Tile_r1-c2_Region5_1283763464.tif 19250 9625 0 | U1: Description
A2: Tile_r1-c3_Region5_1283763464.tif | B2: 1- | C2: 1 | E2: c3_R | F2: 3 | H2: 1 | I2: 3 | L2: 28875 | M2: 9625 | N2: 0 | O2: Tile_r1-c3_Region5_1283763464.tif | R2: 9625 | S2: 9625 | T2: Tile_r1-c3_Region5_1283763464.tif 28875 9625 0
A3: Tile_r1-c4_Region5_1283763464.tif | B3: 1- | C3: 1 | E3: c4_R | F3: 4 | H3: 1 | I3: 4 | L3: 38500 | M3: 9625 | N3: 0 | O3: Tile_r1-c4_Region5_1283763464.tif | R3: 9625 | S3: 9625 | T3: Tile_r1-c4_Region5_1283763464.tif 38500 9625 0 | U3: A: List of image tile names; position of each tile ("r"; row and "c" column) is included
A4: Tile_r1-c5_Region5_1283763464.tif | B4: 1- | C4: 1 | E4: c5_R | F4: 5 | H4: 1 | I4: 5 | L4: 48125 | M4: 9625 | N4: 0 | O4: Tile_r1-c5_Region5_1283763464.tif | R4: 9625 | S4: 9625 | T4: Tile_r1-c5_Region5_1283763464.tif 48125 9625 0 | U4: B: Extracted "r" information, here, including unwanted additional signs that need to be removed
A5: Tile_r1-c6_Region5_1283763464.tif | B5: 1- | C5: 1 | E5: c6_R | F5: 6 | H5: 1 | I5: 6 | L5: 57750 | M5: 9625 | N5: 0 | O5: Tile_r1-c6_Region5_1283763464.tif | R5: 9625 | S5: 9625 | T5: Tile_r1-c6_Region5_1283763464.tif 57750 9625 0 | U5: C: "r" information with removed additional signs (via a macro that was assessed at https://www.extendoffice.com/excel/1622-excel-extract-number-from-string.html?page_comment=6)
A6: Tile_r1-c7_Region5_1283763464.tif | B6: 1- | C6: 1 | E6: c7_R | F6: 7 | H6: 1 | I6: 7 | L6: 67375 | M6: 9625 | N6: 0 | O6: Tile_r1-c7_Region5_1283763464.tif | R6: 9625 | S6: 9625 | T6: Tile_r1-c7_Region5_1283763464.tif 67375 9625 0 | U6: E: Extracted "c" information
A7: Tile_r1-c8_Region5_1283763464.tif | B7: 1- | C7: 1 | E7: c8_R | F7: 8 | H7: 1 | I7: 8 | L7: 77000 | M7: 9625 | N7: 0 | O7: Tile_r1-c8_Region5_1283763464.tif | R7: 9625 | S7: 9625 | T7: Tile_r1-c8_Region5_1283763464.tif 77000 9625 0 | U7: F: Extracted "c" information with removed additional signs
A8: Tile_r1-c9_Region5_1283763464.tif | B8: 1- | C8: 1 | E8: c9_R | F8: 9 | H8: 1 | I8: 9 | L8: 86625 | M8: 9625 | N8: 0 | O8: Tile_r1-c9_Region5_1283763464.tif | R8: 9625 | S8: 9625 | T8: Tile_r1-c9_Region5_1283763464.tif 86625 9625 0 | U8: H,I: Extracted "r" and "c" information, copied
A9: Tile_r1-c10_Region5_1283763464.tif | B9: 1- | C9: 1 | E9: c10_ | F9: 10 | H9: 1 | I9: 10 | L9: 96250 | M9: 9625 | N9: 0 | O9: Tile_r1-c10_Region5_1283763464.tif | R9: 9625 | S9: 9625 | T9: Tile_r1-c10_Region5_1283763464.tif 96250 9625 0 | U9: L: Image coordinate 1
A10: Tile_r1-c11_Region5_1283763464.tif | B10: 1- | C10: 1 | E10: c11_ | F10: 11 | H10: 1 | I10: 11 | L10: 105875 | M10: 9625 | N10: 0 | O10: Tile_r1-c11_Region5_1283763464.tif | R10: 9625 | S10: 9625 | T10: Tile_r1-c11_Region5_1283763464.tif 105875 9625 0 | U10: M: Image coordinate 2
A11: Tile_r1-c12_Region5_1283763464.tif | B11: 1- | C11: 1 | E11: c12_ | F11: 12 | H11: 1 | I11: 12 | L11: 115500 | M11: 9625 | N11: 0 | O11: Tile_r1-c12_Region5_1283763464.tif | R11: 9625 | S11: 9625 | T11: Tile_r1-c12_Region5_1283763464.tif 115500 9625 0 | U11: N: Image coordinate 3 (z)
A12: Tile_r1-c13_Region5_1283763464.tif | B12: 1- | C12: 1 | E12: c13_ | F12: 13 | H12: 1 | I12: 13 | L12: 125125 | M12: 9625 | N12: 0 | O12: Tile_r1-c13_Region5_1283763464.tif | R12: 9625 | S12: 9625 | T12: Tile_r1-c13_Region5_1283763464.tif 125125 9625 0 | U12: O: Image tile name, copied
A13: Tile_r1-c14_Region5_1283763464.tif | B13: 1- | C13: 1 | E13: c14_ | F13: 14 | H13: 1 | I13: 14 | L13: 134750 | M13: 9625 | N13: 0 | O13: Tile_r1-c14_Region5_1283763464.tif | R13: 9625 | S13: 9625 | T13: Tile_r1-c14_Region5_1283763464.tif 134750 9625 0 | U13: R: Image tile size in pixels minus overlap for image coordinate 1
A14: Tile_r1-c15_Region5_1283763464.tif | B14: 1- | C14: 1 | E14: c15_ | F14: 15 | H14: 1 | I14: 15 | L14: 144375 | M14: 9625 | N14: 0 | O14: Tile_r1-c15_Region5_1283763464.tif | R14: 9625 | S14: 9625 | T14: Tile_r1-c15_Region5_1283763464.tif 144375 9625 0 | U14: S: Image tile size in pixels minus overlap for image coordinate 2
A15: Tile_r1-c16_Region5_1283763464.tif | B15: 1- | C15: 1 | E15: c16_ | F15: 16 | H15: 1 | I15: 16 | L15: 154000 | M15: 9625 | N15: 0 | O15: Tile_r1-c16_Region5_1283763464.tif | R15: 9625 | S15: 9625 | T15: Tile_r1-c16_Region5_1283763464.tif 154000 9625 0 | U15: T: Final data to be copied into a text file for import in TrakEM2; " name" "coordinate 1" "coordinate 2" " coordinate 3"
A16: Tile_r1-c17_Region5_1283763464.tif | B16: 1- | C16: 1 | E16: c17_ | F16: 17 | H16: 1 | I16: 17 | L16: 163625 | M16: 9625 | N16: 0 | O16: Tile_r1-c17_Region5_1283763464.tif | R16: 9625 | S16: 9625 | T16: Tile_r1-c17_Region5_1283763464.tif 163625 9625 0
A17: Tile_r1-c18_Region5_1283763464.tif | B17: 1- | C17: 1 | E17: c18_ | F17: 18 | H17: 1 | I17: 18 | L17: 173250 | M17: 9625 | N17: 0 | O17: Tile_r1-c18_Region5_1283763464.tif | R17: 9625 | S17: 9625 | T17: Tile_r1-c18_Region5_1283763464.tif 173250 9625 0
A18: Tile_r1-c19_Region5_1283763464.tif | B18: 1- | C18: 1 | E18: c19_ | F18: 19 | H18: 1 | I18: 19 | L18: 182875 | M18: 9625 | N18: 0 | O18: Tile_r1-c19_Region5_1283763464.tif | R18: 9625 | S18: 9625 | T18: Tile_r1-c19_Region5_1283763464.tif 182875 9625 0
A19: Tile_r1-c20_Region5_1283763464.tif | B19: 1- | C19: 1 | E19: c20_ | F19: 20 | H19: 1 | I19: 20 | L19: 192500 | M19: 9625 | N19: 0 | O19: Tile_r1-c20_Region5_1283763464.tif | R19: 9625 | S19: 9625 | T19: Tile_r1-c20_Region5_1283763464.tif 192500 9625 0
A20: Tile_r2-c1_Region5_1283763464.tif | B20: 2- | C20: 2 | E20: c1_R | F20: 1 | H20: 2 | I20: 1 | L20: 9625 | M20: 19250 | N20: 0 | O20: Tile_r2-c1_Region5_1283763464.tif | R20: 9625 | S20: 9625 | T20: Tile_r2-c1_Region5_1283763464.tif 9625 19250 0
A21: Tile_r2-c2_Region5_1283763464.tif | B21: 2- | C21: 2 | E21: c2_R | F21: 2 | H21: 2 | I21: 2 | L21: 19250 | M21: 19250 | N21: 0 | O21: Tile_r2-c2_Region5_1283763464.tif | R21: 9625 | S21: 9625 | T21: Tile_r2-c2_Region5_1283763464.tif 19250 19250 0 | U21: Step-by-step protocol to generate coordinates (T)
A22: Tile_r2-c3_Region5_1283763464.tif | B22: 2- | C22: 2 | E22: c3_R | F22: 3 | H22: 2 | I22: 3 | L22: 28875 | M22: 19250 | N22: 0 | O22: Tile_r2-c3_Region5_1283763464.tif | R22: 9625 | S22: 9625 | T22: Tile_r2-c3_Region5_1283763464.tif 28875 19250 0 | U22: 1) Copy all names of the individual image tiles into "A" by selecting all tiles-> "shift" and "right click"-> copy path, remove path except for name
A23: Tile_r2-c4_Region5_1283763464.tif | B23: 2- | C23: 2 | E23: c4_R | F23: 4 | H23: 2 | I23: 4 | L23: 38500 | M23: 19250 | N23: 0 | O23: Tile_r2-c4_Region5_1283763464.tif | R23: 9625 | S23: 9625 | T23: Tile_r2-c4_Region5_1283763464.tif 38500 19250 0 | U23: 2) Adjust the rows of the excel file according to the number of image tiles (also B and E)
A24: Tile_r2-c5_Region5_1283763464.tif | B24: 2- | C24: 2 | E24: c5_R | F24: 5 | H24: 2 | I24: 5 | L24: 48125 | M24: 19250 | N24: 0 | O24: Tile_r2-c5_Region5_1283763464.tif | R24: 9625 | S24: 9625 | T24: Tile_r2-c5_Region5_1283763464.tif 48125 19250 0 | U24: 3) Ensure that all other gray columns that relate to this template in excel are cleared (C,F,H,I,N,O)
A25: Tile_r2-c6_Region5_1283763464.tif | B25: 2- | C25: 2 | E25: c6_R | F25: 6 | H25: 2 | I25: 6 | L25: 57750 | M25: 19250 | N25: 0 | O25: Tile_r2-c6_Region5_1283763464.tif | R25: 9625 | S25: 9625 | T25: Tile_r2-c6_Region5_1283763464.tif 57750 19250 0 | U25: 4) Remove additional signs in B and E via the macro: Open the macro with "alt and F11", press "F5" to activate the macro and select input (e.g.B) and output (e.g. C) column
A26: Tile_r2-c7_Region5_1283763464.tif | B26: 2- | C26: 2 | E26: c7_R | F26: 7 | H26: 2 | I26: 7 | L26: 67375 | M26: 19250 | N26: 0 | O26: Tile_r2-c7_Region5_1283763464.tif | R26: 9625 | S26: 9625 | T26: Tile_r2-c7_Region5_1283763464.tif 67375 19250 0 | U26: comment 1 on 4: Ensure that the macro window is small enough to select the respective rows within the document
A27: Tile_r2-c8_Region5_1283763464.tif | B27: 2- | C27: 2 | E27: c8_R | F27: 8 | H27: 2 | I27: 8 | L27: 77000 | M27: 19250 | N27: 0 | O27: Tile_r2-c8_Region5_1283763464.tif | R27: 9625 | S27: 9625 | T27: Tile_r2-c8_Region5_1283763464.tif 77000 19250 0 | U27: comment 2 on 4: The boxes in e.g. B can be selected manually by clicking on e.g. B1, holding the mouse click and moving to B481, press then "ok" on "please select text string"
A28: Tile_r2-c9_Region5_1283763464.tif | B28: 2- | C28: 2 | E28: c9_R | F28: 9 | H28: 2 | I28: 9 | L28: 86625 | M28: 19250 | N28: 0 | O28: Tile_r2-c9_Region5_1283763464.tif | R28: 9625 | S28: 9625 | T28: Tile_r2-c9_Region5_1283763464.tif 86625 19250 0 | U28: comment 3 on 4: Then, select the output as discribed in comment 2 on 4
A29: Tile_r2-c10_Region5_1283763464.tif | B29: 2- | C29: 2 | E29: c10_ | F29: 10 | H29: 2 | I29: 10 | L29: 96250 | M29: 19250 | N29: 0 | O29: Tile_r2-c10_Region5_1283763464.tif | R29: 9625 | S29: 9625 | T29: Tile_r2-c10_Region5_1283763464.tif 96250 19250 0 | U29: comment 4 ond 4: Maybe an error will emerge, but the process still will successfully be prepared
A30: Tile_r2-c11_Region5_1283763464.tif | B30: 2- | C30: 2 | E30: c11_ | F30: 11 | H30: 2 | I30: 11 | L30: 105875 | M30: 19250 | N30: 0 | O30: Tile_r2-c11_Region5_1283763464.tif | R30: 9625 | S30: 9625 | T30: Tile_r2-c11_Region5_1283763464.tif 105875 19250 0 | U30: 5) Copy the resulting values of C and F in H and I
A31: Tile_r2-c12_Region5_1283763464.tif | B31: 2- | C31: 2 | E31: c12_ | F31: 12 | H31: 2 | I31: 12 | L31: 115500 | M31: 19250 | N31: 0 | O31: Tile_r2-c12_Region5_1283763464.tif | R31: 9625 | S31: 9625 | T31: Tile_r2-c12_Region5_1283763464.tif 115500 19250 0 | U31: 6) Prepare the image tile pixel values (image tiles in pixels minus overlap in pixels) for R and S
A32: Tile_r2-c13_Region5_1283763464.tif | B32: 2- | C32: 2 | E32: c13_ | F32: 13 | H32: 2 | I32: 13 | L32: 125125 | M32: 19250 | N32: 0 | O32: Tile_r2-c13_Region5_1283763464.tif | R32: 9625 | S32: 9625 | T32: Tile_r2-c13_Region5_1283763464.tif 125125 19250 0 | U32: 7) Prepare z-value (0 for section 1, 1 for section 2, …) in N
A33: Tile_r2-c14_Region5_1283763464.tif | B33: 2- | C33: 2 | E33: c14_ | F33: 14 | H33: 2 | I33: 14 | L33: 134750 | M33: 19250 | N33: 0 | O33: Tile_r2-c14_Region5_1283763464.tif | R33: 9625 | S33: 9625 | T33: Tile_r2-c14_Region5_1283763464.tif 134750 19250 0 | U33: 8) Select all columns and perform an individual sorting process by the columns H and I; this should result in the same order of image tiles as these were aquired in the FESEM
A34: Tile_r2-c15_Region5_1283763464.tif | B34: 2- | C34: 2 | E34: c15_ | F34: 15 | H34: 2 | I34: 15 | L34: 144375 | M34: 19250 | N34: 0 | O34: Tile_r2-c15_Region5_1283763464.tif | R34: 9625 | S34: 9625 | T34: Tile_r2-c15_Region5_1283763464.tif 144375 19250 0 | U34: 9) Copy the names of the image tiles in A into O
A35: Tile_r2-c16_Region5_1283763464.tif | B35: 2- | C35: 2 | E35: c16_ | F35: 16 | H35: 2 | I35: 16 | L35: 154000 | M35: 19250 | N35: 0 | O35: Tile_r2-c16_Region5_1283763464.tif | R35: 9625 | S35: 9625 | T35: Tile_r2-c16_Region5_1283763464.tif 154000 19250 0 | U35: 10) Ensure that all rows and columns are adjusted correctly; as a final result, in T, all names of the image tiles should be prepared with the coordinates in X, Y and Z
A36: Tile_r2-c17_Region5_1283763464.tif | B36: 2- | C36: 2 | E36: c17_ | F36: 17 | H36: 2 | I36: 17 | L36: 163625 | M36: 19250 | N36: 0 | O36: Tile_r2-c17_Region5_1283763464.tif | R36: 9625 | S36: 9625 | T36: Tile_r2-c17_Region5_1283763464.tif 163625 19250 0
A37: Tile_r2-c18_Region5_1283763464.tif | B37: 2- | C37: 2 | E37: c18_ | F37: 18 | H37: 2 | I37: 18 | L37: 173250 | M37: 19250 | N37: 0 | O37: Tile_r2-c18_Region5_1283763464.tif | R37: 9625 | S37: 9625 | T37: Tile_r2-c18_Region5_1283763464.tif 173250 19250 0 | U37: Finally, copy the content of T into a text file that will be imported into TrakEM2
A38: Tile_r2-c19_Region5_1283763464.tif | B38: 2- | C38: 2 | E38: c19_ | F38: 19 | H38: 2 | I38: 19 | L38: 182875 | M38: 19250 | N38: 0 | O38: Tile_r2-c19_Region5_1283763464.tif | R38: 9625 | S38: 9625 | T38: Tile_r2-c19_Region5_1283763464.tif 182875 19250 0
A39: Tile_r2-c20_Region5_1283763464.tif | B39: 2- | C39: 2 | E39: c20_ | F39: 20 | H39: 2 | I39: 20 | L39: 192500 | M39: 19250 | N39: 0 | O39: Tile_r2-c20_Region5_1283763464.tif | R39: 9625 | S39: 9625 | T39: Tile_r2-c20_Region5_1283763464.tif 192500 19250 0
A40: Tile_r3-c1_Region5_1283763464.tif | B40: 3- | C40: 3 | E40: c1_R | F40: 1 | H40: 3 | I40: 1 | L40: 9625 | M40: 28875 | N40: 0 | O40: Tile_r3-c1_Region5_1283763464.tif | R40: 9625 | S40: 9625 | T40: Tile_r3-c1_Region5_1283763464.tif 9625 28875 0 | U40: Step-by-step protocol for import of image tiles into TrakEM2 via the generated text file
A41: Tile_r3-c2_Region5_1283763464.tif | B41: 3- | C41: 3 | E41: c2_R | F41: 2 | H41: 3 | I41: 2 | L41: 19250 | M41: 28875 | N41: 0 | O41: Tile_r3-c2_Region5_1283763464.tif | R41: 9625 | S41: 9625 | T41: Tile_r3-c2_Region5_1283763464.tif 19250 28875 0 | U41: In TrakEM2, prepare a new project: File-> New-> TrakEM2 (blank)
A42: Tile_r3-c3_Region5_1283763464.tif | B42: 3- | C42: 3 | E42: c3_R | F42: 3 | H42: 3 | I42: 3 | L42: 28875 | M42: 28875 | N42: 0 | O42: Tile_r3-c3_Region5_1283763464.tif | R42: 9625 | S42: 9625 | T42: Tile_r3-c3_Region5_1283763464.tif 28875 28875 0 | U42: 1) "right click" on "1: z=0.0 [layer] in the TrakEM2 Layers window
A43: Tile_r3-c4_Region5_1283763464.tif | B43: 3- | C43: 3 | E43: c4_R | F43: 4 | H43: 3 | I43: 4 | L43: 38500 | M43: 28875 | N43: 0 | O43: Tile_r3-c4_Region5_1283763464.tif | R43: 9625 | S43: 9625 | T43: Tile_r3-c4_Region5_1283763464.tif 38500 28875 0 | U43: 2) "Import from text file…"
A44: Tile_r3-c5_Region5_1283763464.tif | B44: 3- | C44: 3 | E44: c5_R | F44: 5 | H44: 3 | I44: 5 | L44: 48125 | M44: 28875 | N44: 0 | O44: Tile_r3-c5_Region5_1283763464.tif | R44: 9625 | S44: 9625 | T44: Tile_r3-c5_Region5_1283763464.tif 48125 28875 0 | U44: 3) Select text file
A45: Tile_r3-c6_Region5_1283763464.tif | B45: 3- | C45: 3 | E45: c6_R | F45: 6 | H45: 3 | I45: 6 | L45: 57750 | M45: 28875 | N45: 0 | O45: Tile_r3-c6_Region5_1283763464.tif | R45: 9625 | S45: 9625 | T45: Tile_r3-c6_Region5_1283763464.tif 57750 28875 0 | U45: 4) Base layer indicates that section 1 relates to layer ("z") 0 as prepared in the excel file
A46: Tile_r3-c7_Region5_1283763464.tif | B46: 3- | C46: 3 | E46: c7_R | F46: 7 | H46: 3 | I46: 7 | L46: 67375 | M46: 28875 | N46: 0 | O46: Tile_r3-c7_Region5_1283763464.tif | R46: 9625 | S46: 9625 | T46: Tile_r3-c7_Region5_1283763464.tif 67375 28875 0 | U46: 5) Select "space" in Column separator, as name and coordinates are separated by spaces
A47: Tile_r3-c8_Region5_1283763464.tif | B47: 3- | C47: 3 | E47: c8_R | F47: 8 | H47: 3 | I47: 8 | L47: 77000 | M47: 28875 | N47: 0 | O47: Tile_r3-c8_Region5_1283763464.tif | R47: 9625 | S47: 9625 | T47: Tile_r3-c8_Region5_1283763464.tif 77000 28875 0 | U47: 6) Select "ok"
A48: Tile_r3-c9_Region5_1283763464.tif | B48: 3- | C48: 3 | E48: c9_R | F48: 9 | H48: 3 | I48: 9 | L48: 86625 | M48: 28875 | N48: 0 | O48: Tile_r3-c9_Region5_1283763464.tif | R48: 9625 | S48: 9625 | T48: Tile_r3-c9_Region5_1283763464.tif 86625 28875 0 | U48: 7) Select a folder where all image tiles are stored
A49: Tile_r3-c10_Region5_1283763464.tif | B49: 3- | C49: 3 | E49: c10_ | F49: 10 | H49: 3 | I49: 10 | L49: 96250 | M49: 28875 | N49: 0 | O49: Tile_r3-c10_Region5_1283763464.tif | R49: 9625 | S49: 9625 | T49: Tile_r3-c10_Region5_1283763464.tif 96250 28875 0 | U49: comment on 7: Image tiles of multiple sections can be stored in one folder, as TrakEM2 finds all image tiles via the text file
A50: Tile_r3-c11_Region5_1283763464.tif | B50: 3- | C50: 3 | E50: c11_ | F50: 11 | H50: 3 | I50: 11 | L50: 105875 | M50: 28875 | N50: 0 | O50: Tile_r3-c11_Region5_1283763464.tif | R50: 9625 | S50: 9625 | T50: Tile_r3-c11_Region5_1283763464.tif 105875 28875 0 | U50: 8) Now, all image tiles should be imported in TrakEM2
A51: Tile_r3-c12_Region5_1283763464.tif | B51: 3- | C51: 3 | E51: c12_ | F51: 12 | H51: 3 | I51: 12 | L51: 115500 | M51: 28875 | N51: 0 | O51: Tile_r3-c12_Region5_1283763464.tif | R51: 9625 | S51: 9625 | T51: Tile_r3-c12_Region5_1283763464.tif 115500 28875 0 | U51: comment 1 on 8: As described in the online methods, jpg compression should be used to ensure that the project will not be too large, this needs to be prepared prior to import of image tiels
A52: Tile_r3-c13_Region5_1283763464.tif | B52: 3- | C52: 3 | E52: c13_ | F52: 13 | H52: 3 | I52: 13 | L52: 125125 | M52: 28875 | N52: 0 | O52: Tile_r3-c13_Region5_1283763464.tif | R52: 9625 | S52: 9625 | T52: Tile_r3-c13_Region5_1283763464.tif 125125 28875 0 | U52: comment 2 on 8: Therefore "right click" on black canvas-> "project"-> "project properties"
A53: Tile_r3-c14_Region5_1283763464.tif | B53: 3- | C53: 3 | E53: c14_ | F53: 14 | H53: 3 | I53: 14 | L53: 134750 | M53: 28875 | N53: 0 | O53: Tile_r3-c14_Region5_1283763464.tif | R53: 9625 | S53: 9625 | T53: Tile_r3-c14_Region5_1283763464.tif 134750 28875 0 | U53: comment 3 on 8: Change "mipmaps format" from ".rag" to ".jpg", "Bucket side length" might be increased to e.g. 100000 pixels and "Number of threads for mipmaps" might be adjusted
A54: Tile_r3-c15_Region5_1283763464.tif | B54: 3- | C54: 3 | E54: c15_ | F54: 15 | H54: 3 | I54: 15 | L54: 144375 | M54: 28875 | N54: 0 | O54: Tile_r3-c15_Region5_1283763464.tif | R54: 9625 | S54: 9625 | T54: Tile_r3-c15_Region5_1283763464.tif 144375 28875 0 | U54: 9) "Montage multiple layers" via "right click" in the black canvas-> "align"
A55: Tile_r3-c16_Region5_1283763464.tif | B55: 3- | C55: 3 | E55: c16_ | F55: 16 | H55: 3 | I55: 16 | L55: 154000 | M55: 28875 | N55: 0 | O55: Tile_r3-c16_Region5_1283763464.tif | R55: 9625 | S55: 9625 | T55: Tile_r3-c16_Region5_1283763464.tif 154000 28875 0
A56: Tile_r3-c17_Region5_1283763464.tif | B56: 3- | C56: 3 | E56: c17_ | F56: 17 | H56: 3 | I56: 17 | L56: 163625 | M56: 28875 | N56: 0 | O56: Tile_r3-c17_Region5_1283763464.tif | R56: 9625 | S56: 9625 | T56: Tile_r3-c17_Region5_1283763464.tif 163625 28875 0
A57: Tile_r3-c18_Region5_1283763464.tif | B57: 3- | C57: 3 | E57: c18_ | F57: 18 | H57: 3 | I57: 18 | L57: 173250 | M57: 28875 | N57: 0 | O57: Tile_r3-c18_Region5_1283763464.tif | R57: 9625 | S57: 9625 | T57: Tile_r3-c18_Region5_1283763464.tif 173250 28875 0
A58: Tile_r3-c19_Region5_1283763464.tif | B58: 3- | C58: 3 | E58: c19_ | F58: 19 | H58: 3 | I58: 19 | L58: 182875 | M58: 28875 | N58: 0 | O58: Tile_r3-c19_Region5_1283763464.tif | R58: 9625 | S58: 9625 | T58: Tile_r3-c19_Region5_1283763464.tif 182875 28875 0
A59: Tile_r3-c20_Region5_1283763464.tif | B59: 3- | C59: 3 | E59: c20_ | F59: 20 | H59: 3 | I59: 20 | L59: 192500 | M59: 28875 | N59: 0 | O59: Tile_r3-c20_Region5_1283763464.tif | R59: 9625 | S59: 9625 | T59: Tile_r3-c20_Region5_1283763464.tif 192500 28875 0
A60: Tile_r3-c21_Region5_1283763464.tif | B60: 3- | C60: 3 | E60: c21_ | F60: 21 | H60: 3 | I60: 21 | L60: 202125 | M60: 28875 | N60: 0 | O60: Tile_r3-c21_Region5_1283763464.tif | R60: 9625 | S60: 9625 | T60: Tile_r3-c21_Region5_1283763464.tif 202125 28875 0
A61: Tile_r4-c1_Region5_1283763464.tif | B61: 4- | C61: 4 | E61: c1_R | F61: 1 | H61: 4 | I61: 1 | L61: 9625 | M61: 38500 | N61: 0 | O61: Tile_r4-c1_Region5_1283763464.tif | R61: 9625 | S61: 9625 | T61: Tile_r4-c1_Region5_1283763464.tif 9625 38500 0
A62: Tile_r4-c2_Region5_1283763464.tif | B62: 4- | C62: 4 | E62: c2_R | F62: 2 | H62: 4 | I62: 2 | L62: 19250 | M62: 38500 | N62: 0 | O62: Tile_r4-c2_Region5_1283763464.tif | R62: 9625 | S62: 9625 | T62: Tile_r4-c2_Region5_1283763464.tif 19250 38500 0
A63: Tile_r4-c3_Region5_1283763464.tif | B63: 4- | C63: 4 | E63: c3_R | F63: 3 | H63: 4 | I63: 3 | L63: 28875 | M63: 38500 | N63: 0 | O63: Tile_r4-c3_Region5_1283763464.tif | R63: 9625 | S63: 9625 | T63: Tile_r4-c3_Region5_1283763464.tif 28875 38500 0
A64: Tile_r4-c4_Region5_1283763464.tif | B64: 4- | C64: 4 | E64: c4_R | F64: 4 | H64: 4 | I64: 4 | L64: 38500 | M64: 38500 | N64: 0 | O64: Tile_r4-c4_Region5_1283763464.tif | R64: 9625 | S64: 9625 | T64: Tile_r4-c4_Region5_1283763464.tif 38500 38500 0
A65: Tile_r4-c5_Region5_1283763464.tif | B65: =MID(A65,7,2) -> 4- | C65: 4 | E65: =MID(A65,9,4) -> c5_R | F65: 5 | H65: 4 | I65: 5 | L65: =I65*R65 -> 48125 | M65: =H65*S65 -> 38500 | N65: 0 | O65: Tile_r4-c5_Region5_1283763464.tif | R65: 9625 | S65: 9625 | T65: =CONCATENATE(O65," ", L65," ",M65," ",N65) -> Tile_r4-c5_Region5_1283763464.tif 48125 38500 0
A66: Tile_r4-c6_Region5_1283763464.tif | B66: 4- | C66: 4 | E66: c6_R | F66: 6 | H66: 4 | I66: 6 | L66: 57750 | M66: 38500 | N66: 0 | O66: Tile_r4-c6_Region5_1283763464.tif | R66: 9625 | S66: 9625 | T66: Tile_r4-c6_Region5_1283763464.tif 57750 38500 0
A67: Tile_r4-c7_Region5_1283763464.tif | B67: 4- | C67: 4 | E67: c7_R | F67: 7 | H67: 4 | I67: 7 | L67: 67375 | M67: 38500 | N67: 0 | O67: Tile_r4-c7_Region5_1283763464.tif | R67: 9625 | S67: 9625 | T67: Tile_r4-c7_Region5_1283763464.tif 67375 38500 0
A68: Tile_r4-c8_Region5_1283763464.tif | B68: 4- | C68: 4 | E68: c8_R | F68: 8 | H68: 4 | I68: 8 | L68: 77000 | M68: 38500 | N68: 0 | O68: Tile_r4-c8_Region5_1283763464.tif | R68: 9625 | S68: 9625 | T68: Tile_r4-c8_Region5_1283763464.tif 77000 38500 0
A69: Tile_r4-c9_Region5_1283763464.tif | B69: 4- | C69: 4 | E69: c9_R | F69: 9 | H69: 4 | I69: 9 | L69: 86625 | M69: 38500 | N69: 0 | O69: Tile_r4-c9_Region5_1283763464.tif | R69: 9625 | S69: 9625 | T69: Tile_r4-c9_Region5_1283763464.tif 86625 38500 0
A70: Tile_r4-c10_Region5_1283763464.tif | B70: 4- | C70: 4 | E70: c10_ | F70: 10 | H70: 4 | I70: 10 | L70: 96250 | M70: 38500 | N70: 0 | O70: Tile_r4-c10_Region5_1283763464.tif | R70: 9625 | S70: 9625 | T70: Tile_r4-c10_Region5_1283763464.tif 96250 38500 0
A71: Tile_r4-c11_Region5_1283763464.tif | B71: 4- | C71: 4 | E71: c11_ | F71: 11 | H71: 4 | I71: 11 | L71: 105875 | M71: 38500 | N71: 0 | O71: Tile_r4-c11_Region5_1283763464.tif | R71: 9625 | S71: 9625 | T71: Tile_r4-c11_Region5_1283763464.tif 105875 38500 0
A72: Tile_r4-c12_Region5_1283763464.tif | B72: 4- | C72: 4 | E72: c12_ | F72: 12 | H72: 4 | I72: 12 | L72: 115500 | M72: 38500 | N72: 0 | O72: Tile_r4-c12_Region5_1283763464.tif | R72: 9625 | S72: 9625 | T72: Tile_r4-c12_Region5_1283763464.tif 115500 38500 0
A73: Tile_r4-c13_Region5_1283763464.tif | B73: 4- | C73: 4 | E73: c13_ | F73: 13 | H73: 4 | I73: 13 | L73: 125125 | M73: 38500 | N73: 0 | O73: Tile_r4-c13_Region5_1283763464.tif | R73: 9625 | S73: 9625 | T73: Tile_r4-c13_Region5_1283763464.tif 125125 38500 0
A74: Tile_r4-c14_Region5_1283763464.tif | B74: 4- | C74: 4 | E74: c14_ | F74: 14 | H74: 4 | I74: 14 | L74: 134750 | M74: 38500 | N74: 0 | O74: Tile_r4-c14_Region5_1283763464.tif | R74: 9625 | S74: 9625 | T74: Tile_r4-c14_Region5_1283763464.tif 134750 38500 0
A75: Tile_r4-c15_Region5_1283763464.tif | B75: 4- | C75: 4 | E75: c15_ | F75: 15 | H75: 4 | I75: 15 | L75: 144375 | M75: 38500 | N75: 0 | O75: Tile_r4-c15_Region5_1283763464.tif | R75: 9625 | S75: 9625 | T75: Tile_r4-c15_Region5_1283763464.tif 144375 38500 0
A76: Tile_r4-c16_Region5_1283763464.tif | B76: 4- | C76: 4 | E76: c16_ | F76: 16 | H76: 4 | I76: 16 | L76: 154000 | M76: 38500 | N76: 0 | O76: Tile_r4-c16_Region5_1283763464.tif | R76: 9625 | S76: 9625 | T76: Tile_r4-c16_Region5_1283763464.tif 154000 38500 0
A77: Tile_r4-c17_Region5_1283763464.tif | B77: 4- | C77: 4 | E77: c17_ | F77: 17 | H77: 4 | I77: 17 | L77: 163625 | M77: 38500 | N77: 0 | O77: Tile_r4-c17_Region5_1283763464.tif | R77: 9625 | S77: 9625 | T77: Tile_r4-c17_Region5_1283763464.tif 163625 38500 0
A78: Tile_r4-c18_Region5_1283763464.tif | B78: 4- | C78: 4 | E78: c18_ | F78: 18 | H78: 4 | I78: 18 | L78: 173250 | M78: 38500 | N78: 0 | O78: Tile_r4-c18_Region5_1283763464.tif | R78: 9625 | S78: 9625 | T78: Tile_r4-c18_Region5_1283763464.tif 173250 38500 0
A79: Tile_r4-c19_Region5_1283763464.tif | B79: 4- | C79: 4 | E79: c19_ | F79: 19 | H79: 4 | I79: 19 | L79: 182875 | M79: 38500 | N79: 0 | O79: Tile_r4-c19_Region5_1283763464.tif | R79: 9625 | S79: 9625 | T79: Tile_r4-c19_Region5_1283763464.tif 182875 38500 0
A80: Tile_r4-c20_Region5_1283763464.tif | B80: 4- | C80: 4 | E80: c20_ | F80: 20 | H80: 4 | I80: 20 | L80: 192500 | M80: 38500 | N80: 0 | O80: Tile_r4-c20_Region5_1283763464.tif | R80: 9625 | S80: 9625 | T80: Tile_r4-c20_Region5_1283763464.tif 192500 38500 0
A81: Tile_r4-c21_Region5_1283763464.tif | B81: 4- | C81: 4 | E81: c21_ | F81: 21 | H81: 4 | I81: 21 | L81: 202125 | M81: 38500 | N81: 0 | O81: Tile_r4-c21_Region5_1283763464.tif | R81: 9625 | S81: 9625 | T81: Tile_r4-c21_Region5_1283763464.tif 202125 38500 0
A82: Tile_r4-c22_Region5_1283763464.tif | B82: 4- | C82: 4 | E82: c22_ | F82: 22 | H82: 4 | I82: 22 | L82: 211750 | M82: 38500 | N82: 0 | O82: Tile_r4-c22_Region5_1283763464.tif | R82: 9625 | S82: 9625 | T82: Tile_r4-c22_Region5_1283763464.tif 211750 38500 0
A83: Tile_r4-c24_Region5_1283763464.tif | B83: 4- | C83: 4 | E83: c24_ | F83: 24 | H83: 4 | I83: 24 | L83: 231000 | M83: 38500 | N83: 0 | O83: Tile_r4-c24_Region5_1283763464.tif | R83: 9625 | S83: 9625 | T83: Tile_r4-c24_Region5_1283763464.tif 231000 38500 0
A84: Tile_r4-c25_Region5_1283763464.tif | B84: 4- | C84: 4 | E84: c25_ | F84: 25 | H84: 4 | I84: 25 | L84: 240625 | M84: 38500 | N84: 0 | O84: Tile_r4-c25_Region5_1283763464.tif | R84: 9625 | S84: 9625 | T84: Tile_r4-c25_Region5_1283763464.tif 240625 38500 0
A85: Tile_r4-c26_Region5_1283763464.tif | B85: 4- | C85: 4 | E85: c26_ | F85: 26 | H85: 4 | I85: 26 | L85: 250250 | M85: 38500 | N85: 0 | O85: Tile_r4-c26_Region5_1283763464.tif | R85: 9625 | S85: 9625 | T85: Tile_r4-c26_Region5_1283763464.tif 250250 38500 0
A86: Tile_r4-c27_Region5_1283763464.tif | B86: 4- | C86: 4 | E86: c27_ | F86: 27 | H86: 4 | I86: 27 | L86: 259875 | M86: 38500 | N86: 0 | O86: Tile_r4-c27_Region5_1283763464.tif | R86: 9625 | S86: 9625 | T86: Tile_r4-c27_Region5_1283763464.tif 259875 38500 0
A87: Tile_r4-c28_Region5_1283763464.tif | B87: 4- | C87: 4 | E87: c28_ | F87: 28 | H87: 4 | I87: 28 | L87: 269500 | M87: 38500 | N87: 0 | O87: Tile_r4-c28_Region5_1283763464.tif | R87: 9625 | S87: 9625 | T87: Tile_r4-c28_Region5_1283763464.tif 269500 38500 0
A88: Tile_r5-c1_Region5_1283763464.tif | B88: 5- | C88: 5 | E88: c1_R | F88: 1 | H88: 5 | I88: 1 | L88: 9625 | M88: 48125 | N88: 0 | O88: Tile_r5-c1_Region5_1283763464.tif | R88: 9625 | S88: 9625 | T88: Tile_r5-c1_Region5_1283763464.tif 9625 48125 0
A89: Tile_r5-c2_Region5_1283763464.tif | B89: 5- | C89: 5 | E89: c2_R | F89: 2 | H89: 5 | I89: 2 | L89: 19250 | M89: 48125 | N89: 0 | O89: Tile_r5-c2_Region5_1283763464.tif | R89: 9625 | S89: 9625 | T89: Tile_r5-c2_Region5_1283763464.tif 19250 48125 0
A90: Tile_r5-c3_Region5_1283763464.tif | B90: 5- | C90: 5 | E90: c3_R | F90: 3 | H90: 5 | I90: 3 | L90: 28875 | M90: 48125 | N90: 0 | O90: Tile_r5-c3_Region5_1283763464.tif | R90: 9625 | S90: 9625 | T90: Tile_r5-c3_Region5_1283763464.tif 28875 48125 0
A91: Tile_r5-c4_Region5_1283763464.tif | B91: 5- | C91: 5 | E91: c4_R | F91: 4 | H91: 5 | I91: 4 | L91: 38500 | M91: 48125 | N91: 0 | O91: Tile_r5-c4_Region5_1283763464.tif | R91: 9625 | S91: 9625 | T91: Tile_r5-c4_Region5_1283763464.tif 38500 48125 0
A92: Tile_r5-c5_Region5_1283763464.tif | B92: 5- | C92: 5 | E92: c5_R | F92: 5 | H92: 5 | I92: 5 | L92: 48125 | M92: 48125 | N92: 0 | O92: Tile_r5-c5_Region5_1283763464.tif | R92: 9625 | S92: 9625 | T92: Tile_r5-c5_Region5_1283763464.tif 48125 48125 0
A93: Tile_r5-c6_Region5_1283763464.tif | B93: 5- | C93: 5 | E93: c6_R | F93: 6 | H93: 5 | I93: 6 | L93: 57750 | M93: 48125 | N93: 0 | O93: Tile_r5-c6_Region5_1283763464.tif | R93: 9625 | S93: 9625 | T93: Tile_r5-c6_Region5_1283763464.tif 57750 48125 0
A94: Tile_r5-c7_Region5_1283763464.tif | B94: 5- | C94: 5 | E94: c7_R | F94: 7 | H94: 5 | I94: 7 | L94: 67375 | M94: 48125 | N94: 0 | O94: Tile_r5-c7_Region5_1283763464.tif | R94: 9625 | S94: 9625 | T94: Tile_r5-c7_Region5_1283763464.tif 67375 48125 0
A95: Tile_r5-c8_Region5_1283763464.tif | B95: 5- | C95: 5 | E95: c8_R | F95: 8 | H95: 5 | I95: 8 | L95: 77000 | M95: 48125 | N95: 0 | O95: Tile_r5-c8_Region5_1283763464.tif | R95: 9625 | S95: 9625 | T95: Tile_r5-c8_Region5_1283763464.tif 77000 48125 0
A96: Tile_r5-c9_Region5_1283763464.tif | B96: 5- | C96: 5 | E96: c9_R | F96: 9 | H96: 5 | I96: 9 | L96: 86625 | M96: 48125 | N96: 0 | O96: Tile_r5-c9_Region5_1283763464.tif | R96: 9625 | S96: 9625 | T96: Tile_r5-c9_Region5_1283763464.tif 86625 48125 0
A97: Tile_r5-c10_Region5_1283763464.tif | B97: 5- | C97: 5 | E97: c10_ | F97: 10 | H97: 5 | I97: 10 | L97: 96250 | M97: 48125 | N97: 0 | O97: Tile_r5-c10_Region5_1283763464.tif | R97: 9625 | S97: 9625 | T97: Tile_r5-c10_Region5_1283763464.tif 96250 48125 0
A98: Tile_r5-c11_Region5_1283763464.tif | B98: 5- | C98: 5 | E98: c11_ | F98: 11 | H98: 5 | I98: 11 | L98: 105875 | M98: 48125 | N98: 0 | O98: Tile_r5-c11_Region5_1283763464.tif | R98: 9625 | S98: 9625 | T98: Tile_r5-c11_Region5_1283763464.tif 105875 48125 0
A99: Tile_r5-c12_Region5_1283763464.tif | B99: 5- | C99: 5 | E99: c12_ | F99: 12 | H99: 5 | I99: 12 | L99: 115500 | M99: 48125 | N99: 0 | O99: Tile_r5-c12_Region5_1283763464.tif | R99: 9625 | S99: 9625 | T99: Tile_r5-c12_Region5_1283763464.tif 115500 48125 0
A100: Tile_r5-c13_Region5_1283763464.tif | B100: 5- | C100: 5 | E100: c13_ | F100: 13 | H100: 5 | I100: 13 | L100: 125125 | M100: 48125 | N100: 0 | O100: Tile_r5-c13_Region5_1283763464.tif | R100: 9625 | S100: 9625 | T100: Tile_r5-c13_Region5_1283763464.tif 125125 48125 0
A101: Tile_r5-c14_Region5_1283763464.tif | B101: 5- | C101: 5 | E101: c14_ | F101: 14 | H101: 5 | I101: 14 | L101: 134750 | M101: 48125 | N101: 0 | O101: Tile_r5-c14_Region5_1283763464.tif | R101: 9625 | S101: 9625 | T101: Tile_r5-c14_Region5_1283763464.tif 134750 48125 0
A102: Tile_r5-c15_Region5_1283763464.tif | B102: 5- | C102: 5 | E102: c15_ | F102: 15 | H102: 5 | I102: 15 | L102: 144375 | M102: 48125 | N102: 0 | O102: Tile_r5-c15_Region5_1283763464.tif | R102: 9625 | S102: 9625 | T102: Tile_r5-c15_Region5_1283763464.tif 144375 48125 0
A103: Tile_r5-c16_Region5_1283763464.tif | B103: 5- | C103: 5 | E103: c16_ | F103: 16 | H103: 5 | I103: 16 | L103: 154000 | M103: 48125 | N103: 0 | O103: Tile_r5-c16_Region5_1283763464.tif | R103: 9625 | S103: 9625 | T103: Tile_r5-c16_Region5_1283763464.tif 154000 48125 0
A104: Tile_r5-c17_Region5_1283763464.tif | B104: 5- | C104: 5 | E104: c17_ | F104: 17 | H104: 5 | I104: 17 | L104: 163625 | M104: 48125 | N104: 0 | O104: Tile_r5-c17_Region5_1283763464.tif | R104: 9625 | S104: 9625 | T104: Tile_r5-c17_Region5_1283763464.tif 163625 48125 0
A105: Tile_r5-c18_Region5_1283763464.tif | B105: 5- | C105: 5 | E105: c18_ | F105: 18 | H105: 5 | I105: 18 | L105: 173250 | M105: 48125 | N105: 0 | O105: Tile_r5-c18_Region5_1283763464.tif | R105: 9625 | S105: 9625 | T105: Tile_r5-c18_Region5_1283763464.tif 173250 48125 0
A106: Tile_r5-c19_Region5_1283763464.tif | B106: 5- | C106: 5 | E106: c19_ | F106: 19 | H106: 5 | I106: 19 | L106: 182875 | M106: 48125 | N106: 0 | O106: Tile_r5-c19_Region5_1283763464.tif | R106: 9625 | S106: 9625 | T106: Tile_r5-c19_Region5_1283763464.tif 182875 48125 0
A107: Tile_r5-c20_Region5_1283763464.tif | B107: 5- | C107: 5 | E107: c20_ | F107: 20 | H107: 5 | I107: 20 | L107: 192500 | M107: 48125 | N107: 0 | O107: Tile_r5-c20_Region5_1283763464.tif | R107: 9625 | S107: 9625 | T107: Tile_r5-c20_Region5_1283763464.tif 192500 48125 0
A108: Tile_r5-c21_Region5_1283763464.tif | B108: 5- | C108: 5 | E108: c21_ | F108: 21 | H108: 5 | I108: 21 | L108: 202125 | M108: 48125 | N108: 0 | O108: Tile_r5-c21_Region5_1283763464.tif | R108: 9625 | S108: 9625 | T108: Tile_r5-c21_Region5_1283763464.tif 202125 48125 0
A109: Tile_r5-c22_Region5_1283763464.tif | B109: 5- | C109: 5 | E109: c22_ | F109: 22 | H109: 5 | I109: 22 | L109: 211750 | M109: 48125 | N109: 0 | O109: Tile_r5-c22_Region5_1283763464.tif | R109: 9625 | S109: 9625 | T109: Tile_r5-c22_Region5_1283763464.tif 211750 48125 0
A110: Tile_r5-c24_Region5_1283763464.tif | B110: 5- | C110: 5 | E110: c24_ | F110: 24 | H110: 5 | I110: 24 | L110: 231000 | M110: 48125 | N110: 0 | O110: Tile_r5-c24_Region5_1283763464.tif | R110: 9625 | S110: 9625 | T110: Tile_r5-c24_Region5_1283763464.tif 231000 48125 0
A111: Tile_r5-c25_Region5_1283763464.tif | B111: 5- | C111: 5 | E111: c25_ | F111: 25 | H111: 5 | I111: 25 | L111: 240625 | M111: 48125 | N111: 0 | O111: Tile_r5-c25_Region5_1283763464.tif | R111: 9625 | S111: 9625 | T111: Tile_r5-c25_Region5_1283763464.tif 240625 48125 0
A112: Tile_r5-c26_Region5_1283763464.tif | B112: 5- | C112: 5 | E112: c26_ | F112: 26 | H112: 5 | I112: 26 | L112: 250250 | M112: 48125 | N112: 0 | O112: Tile_r5-c26_Region5_1283763464.tif | R112: 9625 | S112: 9625 | T112: Tile_r5-c26_Region5_1283763464.tif 250250 48125 0
A113: Tile_r5-c27_Region5_1283763464.tif | B113: 5- | C113: 5 | E113: c27_ | F113: 27 | H113: 5 | I113: 27 | L113: 259875 | M113: 48125 | N113: 0 | O113: Tile_r5-c27_Region5_1283763464.tif | R113: 9625 | S113: 9625 | T113: Tile_r5-c27_Region5_1283763464.tif 259875 48125 0
A114: Tile_r5-c28_Region5_1283763464.tif | B114: 5- | C114: 5 | E114: c28_ | F114: 28 | H114: 5 | I114: 28 | L114: 269500 | M114: 48125 | N114: 0 | O114: Tile_r5-c28_Region5_1283763464.tif | R114: 9625 | S114: 9625 | T114: Tile_r5-c28_Region5_1283763464.tif 269500 48125 0
A115: Tile_r6-c1_Region5_1283763464.tif | B115: 6- | C115: 6 | E115: c1_R | F115: 1 | H115: 6 | I115: 1 | L115: 9625 | M115: 57750 | N115: 0 | O115: Tile_r6-c1_Region5_1283763464.tif | R115: 9625 | S115: 9625 | T115: Tile_r6-c1_Region5_1283763464.tif 9625 57750 0
A116: Tile_r6-c2_Region5_1283763464.tif | B116: 6- | C116: 6 | E116: c2_R | F116: 2 | H116: 6 | I116: 2 | L116: 19250 | M116: 57750 | N116: 0 | O116: Tile_r6-c2_Region5_1283763464.tif | R116: 9625 | S116: 9625 | T116: Tile_r6-c2_Region5_1283763464.tif 19250 57750 0
A117: Tile_r6-c3_Region5_1283763464.tif | B117: 6- | C117: 6 | E117: c3_R | F117: 3 | H117: 6 | I117: 3 | L117: 28875 | M117: 57750 | N117: 0 | O117: Tile_r6-c3_Region5_1283763464.tif | R117: 9625 | S117: 9625 | T117: Tile_r6-c3_Region5_1283763464.tif 28875 57750 0
A118: Tile_r6-c4_Region5_1283763464.tif | B118: 6- | C118: 6 | E118: c4_R | F118: 4 | H118: 6 | I118: 4 | L118: 38500 | M118: 57750 | N118: 0 | O118: Tile_r6-c4_Region5_1283763464.tif | R118: 9625 | S118: 9625 | T118: Tile_r6-c4_Region5_1283763464.tif 38500 57750 0
A119: Tile_r6-c5_Region5_1283763464.tif | B119: 6- | C119: 6 | E119: c5_R | F119: 5 | H119: 6 | I119: 5 | L119: 48125 | M119: 57750 | N119: 0 | O119: Tile_r6-c5_Region5_1283763464.tif | R119: 9625 | S119: 9625 | T119: Tile_r6-c5_Region5_1283763464.tif 48125 57750 0
A120: Tile_r6-c6_Region5_1283763464.tif | B120: 6- | C120: 6 | E120: c6_R | F120: 6 | H120: 6 | I120: 6 | L120: 57750 | M120: 57750 | N120: 0 | O120: Tile_r6-c6_Region5_1283763464.tif | R120: 9625 | S120: 9625 | T120: Tile_r6-c6_Region5_1283763464.tif 57750 57750 0
A121: Tile_r6-c7_Region5_1283763464.tif | B121: 6- | C121: 6 | E121: c7_R | F121: 7 | H121: 6 | I121: 7 | L121: 67375 | M121: 57750 | N121: 0 | O121: Tile_r6-c7_Region5_1283763464.tif | R121: 9625 | S121: 9625 | T121: Tile_r6-c7_Region5_1283763464.tif 67375 57750 0
A122: Tile_r6-c8_Region5_1283763464.tif | B122: 6- | C122: 6 | E122: c8_R | F122: 8 | H122: 6 | I122: 8 | L122: 77000 | M122: 57750 | N122: 0 | O122: Tile_r6-c8_Region5_1283763464.tif | R122: 9625 | S122: 9625 | T122: Tile_r6-c8_Region5_1283763464.tif 77000 57750 0
A123: Tile_r6-c9_Region5_1283763464.tif | B123: 6- | C123: 6 | E123: c9_R | F123: 9 | H123: 6 | I123: 9 | L123: 86625 | M123: 57750 | N123: 0 | O123: Tile_r6-c9_Region5_1283763464.tif | R123: 9625 | S123: 9625 | T123: Tile_r6-c9_Region5_1283763464.tif 86625 57750 0
A124: Tile_r6-c10_Region5_1283763464.tif | B124: 6- | C124: 6 | E124: c10_ | F124: 10 | H124: 6 | I124: 10 | L124: 96250 | M124: 57750 | N124: 0 | O124: Tile_r6-c10_Region5_1283763464.tif | R124: 9625 | S124: 9625 | T124: Tile_r6-c10_Region5_1283763464.tif 96250 57750 0
A125: Tile_r6-c11_Region5_1283763464.tif | B125: 6- | C125: 6 | E125: c11_ | F125: 11 | H125: 6 | I125: 11 | L125: 105875 | M125: 57750 | N125: 0 | O125: Tile_r6-c11_Region5_1283763464.tif | R125: 9625 | S125: 9625 | T125: Tile_r6-c11_Region5_1283763464.tif 105875 57750 0
A126: Tile_r6-c12_Region5_1283763464.tif | B126: 6- | C126: 6 | E126: c12_ | F126: 12 | H126: 6 | I126: 12 | L126: 115500 | M126: 57750 | N126: 0 | O126: Tile_r6-c12_Region5_1283763464.tif | R126: 9625 | S126: 9625 | T126: Tile_r6-c12_Region5_1283763464.tif 115500 57750 0
A127: Tile_r6-c13_Region5_1283763464.tif | B127: 6- | C127: 6 | E127: c13_ | F127: 13 | H127: 6 | I127: 13 | L127: 125125 | M127: 57750 | N127: 0 | O127: Tile_r6-c13_Region5_1283763464.tif | R127: 9625 | S127: 9625 | T127: Tile_r6-c13_Region5_1283763464.tif 125125 57750 0
A128: Tile_r6-c14_Region5_1283763464.tif | B128: 6- | C128: 6 | E128: c14_ | F128: 14 | H128: 6 | I128: 14 | L128: 134750 | M128: 57750 | N128: 0 | O128: Tile_r6-c14_Region5_1283763464.tif | R128: 9625 | S128: 9625 | T128: Tile_r6-c14_Region5_1283763464.tif 134750 57750 0
A129: Tile_r6-c15_Region5_1283763464.tif | B129: =MID(A129,7,2) -> 6- | C129: 6 | E129: =MID(A129,9,4) -> c15_ | F129: 15 | H129: 6 | I129: 15 | L129: =I129*R129 -> 144375 | M129: =H129*S129 -> 57750 | N129: 0 | O129: Tile_r6-c15_Region5_1283763464.tif | R129: 9625 | S129: 9625 | T129: =CONCATENATE(O129," ", L129," ",M129," ",N129) -> Tile_r6-c15_Region5_1283763464.tif 144375 57750 0
A130: Tile_r6-c16_Region5_1283763464.tif | B130: 6- | C130: 6 | E130: c16_ | F130: 16 | H130: 6 | I130: 16 | L130: 154000 | M130: 57750 | N130: 0 | O130: Tile_r6-c16_Region5_1283763464.tif | R130: 9625 | S130: 9625 | T130: Tile_r6-c16_Region5_1283763464.tif 154000 57750 0
A131: Tile_r6-c17_Region5_1283763464.tif | B131: 6- | C131: 6 | E131: c17_ | F131: 17 | H131: 6 | I131: 17 | L131: 163625 | M131: 57750 | N131: 0 | O131: Tile_r6-c17_Region5_1283763464.tif | R131: 9625 | S131: 9625 | T131: Tile_r6-c17_Region5_1283763464.tif 163625 57750 0
A132: Tile_r6-c18_Region5_1283763464.tif | B132: 6- | C132: 6 | E132: c18_ | F132: 18 | H132: 6 | I132: 18 | L132: 173250 | M132: 57750 | N132: 0 | O132: Tile_r6-c18_Region5_1283763464.tif | R132: 9625 | S132: 9625 | T132: Tile_r6-c18_Region5_1283763464.tif 173250 57750 0
A133: Tile_r6-c19_Region5_1283763464.tif | B133: 6- | C133: 6 | E133: c19_ | F133: 19 | H133: 6 | I133: 19 | L133: 182875 | M133: 57750 | N133: 0 | O133: Tile_r6-c19_Region5_1283763464.tif | R133: 9625 | S133: 9625 | T133: Tile_r6-c19_Region5_1283763464.tif 182875 57750 0
A134: Tile_r6-c20_Region5_1283763464.tif | B134: 6- | C134: 6 | E134: c20_ | F134: 20 | H134: 6 | I134: 20 | L134: 192500 | M134: 57750 | N134: 0 | O134: Tile_r6-c20_Region5_1283763464.tif | R134: 9625 | S134: 9625 | T134: Tile_r6-c20_Region5_1283763464.tif 192500 57750 0
A135: Tile_r6-c21_Region5_1283763464.tif | B135: 6- | C135: 6 | E135: c21_ | F135: 21 | H135: 6 | I135: 21 | L135: 202125 | M135: 57750 | N135: 0 | O135: Tile_r6-c21_Region5_1283763464.tif | R135: 9625 | S135: 9625 | T135: Tile_r6-c21_Region5_1283763464.tif 202125 57750 0
A136: Tile_r6-c22_Region5_1283763464.tif | B136: 6- | C136: 6 | E136: c22_ | F136: 22 | H136: 6 | I136: 22 | L136: 211750 | M136: 57750 | N136: 0 | O136: Tile_r6-c22_Region5_1283763464.tif | R136: 9625 | S136: 9625 | T136: Tile_r6-c22_Region5_1283763464.tif 211750 57750 0
A137: Tile_r6-c23_Region5_1283763464.tif | B137: 6- | C137: 6 | E137: c23_ | F137: 23 | H137: 6 | I137: 23 | L137: 221375 | M137: 57750 | N137: 0 | O137: Tile_r6-c23_Region5_1283763464.tif | R137: 9625 | S137: 9625 | T137: Tile_r6-c23_Region5_1283763464.tif 221375 57750 0
A138: Tile_r6-c24_Region5_1283763464.tif | B138: 6- | C138: 6 | E138: c24_ | F138: 24 | H138: 6 | I138: 24 | L138: 231000 | M138: 57750 | N138: 0 | O138: Tile_r6-c24_Region5_1283763464.tif | R138: 9625 | S138: 9625 | T138: Tile_r6-c24_Region5_1283763464.tif 231000 57750 0
A139: Tile_r6-c25_Region5_1283763464.tif | B139: 6- | C139: 6 | E139: c25_ | F139: 25 | H139: 6 | I139: 25 | L139: 240625 | M139: 57750 | N139: 0 | O139: Tile_r6-c25_Region5_1283763464.tif | R139: 9625 | S139: 9625 | T139: Tile_r6-c25_Region5_1283763464.tif 240625 57750 0
A140: Tile_r6-c26_Region5_1283763464.tif | B140: 6- | C140: 6 | E140: c26_ | F140: 26 | H140: 6 | I140: 26 | L140: 250250 | M140: 57750 | N140: 0 | O140: Tile_r6-c26_Region5_1283763464.tif | R140: 9625 | S140: 9625 | T140: Tile_r6-c26_Region5_1283763464.tif 250250 57750 0
A141: Tile_r6-c27_Region5_1283763464.tif | B141: 6- | C141: 6 | E141: c27_ | F141: 27 | H141: 6 | I141: 27 | L141: 259875 | M141: 57750 | N141: 0 | O141: Tile_r6-c27_Region5_1283763464.tif | R141: 9625 | S141: 9625 | T141: Tile_r6-c27_Region5_1283763464.tif 259875 57750 0
A142: Tile_r6-c28_Region5_1283763464.tif | B142: 6- | C142: 6 | E142: c28_ | F142: 28 | H142: 6 | I142: 28 | L142: 269500 | M142: 57750 | N142: 0 | O142: Tile_r6-c28_Region5_1283763464.tif | R142: 9625 | S142: 9625 | T142: Tile_r6-c28_Region5_1283763464.tif 269500 57750 0
A143: Tile_r7-c1_Region5_1283763464.tif | B143: 7- | C143: 7 | E143: c1_R | F143: 1 | H143: 7 | I143: 1 | L143: 9625 | M143: 67375 | N143: 0 | O143: Tile_r7-c1_Region5_1283763464.tif | R143: 9625 | S143: 9625 | T143: Tile_r7-c1_Region5_1283763464.tif 9625 67375 0
A144: Tile_r7-c2_Region5_1283763464.tif | B144: 7- | C144: 7 | E144: c2_R | F144: 2 | H144: 7 | I144: 2 | L144: 19250 | M144: 67375 | N144: 0 | O144: Tile_r7-c2_Region5_1283763464.tif | R144: 9625 | S144: 9625 | T144: Tile_r7-c2_Region5_1283763464.tif 19250 67375 0
A145: Tile_r7-c3_Region5_1283763464.tif | B145: 7- | C145: 7 | E145: c3_R | F145: 3 | H145: 7 | I145: 3 | L145: 28875 | M145: 67375 | N145: 0 | O145: Tile_r7-c3_Region5_1283763464.tif | R145: 9625 | S145: 9625 | T145: Tile_r7-c3_Region5_1283763464.tif 28875 67375 0
A146: Tile_r7-c4_Region5_1283763464.tif | B146: 7- | C146: 7 | E146: c4_R | F146: 4 | H146: 7 | I146: 4 | L146: 38500 | M146: 67375 | N146: 0 | O146: Tile_r7-c4_Region5_1283763464.tif | R146: 9625 | S146: 9625 | T146: Tile_r7-c4_Region5_1283763464.tif 38500 67375 0
A147: Tile_r7-c5_Region5_1283763464.tif | B147: 7- | C147: 7 | E147: c5_R | F147: 5 | H147: 7 | I147: 5 | L147: 48125 | M147: 67375 | N147: 0 | O147: Tile_r7-c5_Region5_1283763464.tif | R147: 9625 | S147: 9625 | T147: Tile_r7-c5_Region5_1283763464.tif 48125 67375 0
A148: Tile_r7-c6_Region5_1283763464.tif | B148: 7- | C148: 7 | E148: c6_R | F148: 6 | H148: 7 | I148: 6 | L148: 57750 | M148: 67375 | N148: 0 | O148: Tile_r7-c6_Region5_1283763464.tif | R148: 9625 | S148: 9625 | T148: Tile_r7-c6_Region5_1283763464.tif 57750 67375 0
A149: Tile_r7-c7_Region5_1283763464.tif | B149: 7- | C149: 7 | E149: c7_R | F149: 7 | H149: 7 | I149: 7 | L149: 67375 | M149: 67375 | N149: 0 | O149: Tile_r7-c7_Region5_1283763464.tif | R149: 9625 | S149: 9625 | T149: Tile_r7-c7_Region5_1283763464.tif 67375 67375 0
A150: Tile_r7-c8_Region5_1283763464.tif | B150: 7- | C150: 7 | E150: c8_R | F150: 8 | H150: 7 | I150: 8 | L150: 77000 | M150: 67375 | N150: 0 | O150: Tile_r7-c8_Region5_1283763464.tif | R150: 9625 | S150: 9625 | T150: Tile_r7-c8_Region5_1283763464.tif 77000 67375 0
A151: Tile_r7-c9_Region5_1283763464.tif | B151: 7- | C151: 7 | E151: c9_R | F151: 9 | H151: 7 | I151: 9 | L151: 86625 | M151: 67375 | N151: 0 | O151: Tile_r7-c9_Region5_1283763464.tif | R151: 9625 | S151: 9625 | T151: Tile_r7-c9_Region5_1283763464.tif 86625 67375 0
A152: Tile_r7-c10_Region5_1283763464.tif | B152: 7- | C152: 7 | E152: c10_ | F152: 10 | H152: 7 | I152: 10 | L152: 96250 | M152: 67375 | N152: 0 | O152: Tile_r7-c10_Region5_1283763464.tif | R152: 9625 | S152: 9625 | T152: Tile_r7-c10_Region5_1283763464.tif 96250 67375 0
A153: Tile_r7-c11_Region5_1283763464.tif | B153: 7- | C153: 7 | E153: c11_ | F153: 11 | H153: 7 | I153: 11 | L153: 105875 | M153: 67375 | N153: 0 | O153: Tile_r7-c11_Region5_1283763464.tif | R153: 9625 | S153: 9625 | T153: Tile_r7-c11_Region5_1283763464.tif 105875 67375 0
A154: Tile_r7-c12_Region5_1283763464.tif | B154: 7- | C154: 7 | E154: c12_ | F154: 12 | H154: 7 | I154: 12 | L154: 115500 | M154: 67375 | N154: 0 | O154: Tile_r7-c12_Region5_1283763464.tif | R154: 9625 | S154: 9625 | T154: Tile_r7-c12_Region5_1283763464.tif 115500 67375 0
A155: Tile_r7-c13_Region5_1283763464.tif | B155: 7- | C155: 7 | E155: c13_ | F155: 13 | H155: 7 | I155: 13 | L155: 125125 | M155: 67375 | N155: 0 | O155: Tile_r7-c13_Region5_1283763464.tif | R155: 9625 | S155: 9625 | T155: Tile_r7-c13_Region5_1283763464.tif 125125 67375 0
A156: Tile_r7-c14_Region5_1283763464.tif | B156: 7- | C156: 7 | E156: c14_ | F156: 14 | H156: 7 | I156: 14 | L156: 134750 | M156: 67375 | N156: 0 | O156: Tile_r7-c14_Region5_1283763464.tif | R156: 9625 | S156: 9625 | T156: Tile_r7-c14_Region5_1283763464.tif 134750 67375 0
A157: Tile_r7-c15_Region5_1283763464.tif | B157: 7- | C157: 7 | E157: c15_ | F157: 15 | H157: 7 | I157: 15 | L157: 144375 | M157: 67375 | N157: 0 | O157: Tile_r7-c15_Region5_1283763464.tif | R157: 9625 | S157: 9625 | T157: Tile_r7-c15_Region5_1283763464.tif 144375 67375 0
A158: Tile_r7-c16_Region5_1283763464.tif | B158: 7- | C158: 7 | E158: c16_ | F158: 16 | H158: 7 | I158: 16 | L158: 154000 | M158: 67375 | N158: 0 | O158: Tile_r7-c16_Region5_1283763464.tif | R158: 9625 | S158: 9625 | T158: Tile_r7-c16_Region5_1283763464.tif 154000 67375 0
A159: Tile_r7-c17_Region5_1283763464.tif | B159: 7- | C159: 7 | E159: c17_ | F159: 17 | H159: 7 | I159: 17 | L159: 163625 | M159: 67375 | N159: 0 | O159: Tile_r7-c17_Region5_1283763464.tif | R159: 9625 | S159: 9625 | T159: Tile_r7-c17_Region5_1283763464.tif 163625 67375 0
A160: Tile_r7-c18_Region5_1283763464.tif | B160: 7- | C160: 7 | E160: c18_ | F160: 18 | H160: 7 | I160: 18 | L160: 173250 | M160: 67375 | N160: 0 | O160: Tile_r7-c18_Region5_1283763464.tif | R160: 9625 | S160: 9625 | T160: Tile_r7-c18_Region5_1283763464.tif 173250 67375 0
A161: Tile_r7-c19_Region5_1283763464.tif | B161: 7- | C161: 7 | E161: c19_ | F161: 19 | H161: 7 | I161: 19 | L161: 182875 | M161: 67375 | N161: 0 | O161: Tile_r7-c19_Region5_1283763464.tif | R161: 9625 | S161: 9625 | T161: Tile_r7-c19_Region5_1283763464.tif 182875 67375 0
A162: Tile_r7-c20_Region5_1283763464.tif | B162: 7- | C162: 7 | E162: c20_ | F162: 20 | H162: 7 | I162: 20 | L162: 192500 | M162: 67375 | N162: 0 | O162: Tile_r7-c20_Region5_1283763464.tif | R162: 9625 | S162: 9625 | T162: Tile_r7-c20_Region5_1283763464.tif 192500 67375 0
A163: Tile_r7-c21_Region5_1283763464.tif | B163: 7- | C163: 7 | E163: c21_ | F163: 21 | H163: 7 | I163: 21 | L163: 202125 | M163: 67375 | N163: 0 | O163: Tile_r7-c21_Region5_1283763464.tif | R163: 9625 | S163: 9625 | T163: Tile_r7-c21_Region5_1283763464.tif 202125 67375 0
A164: Tile_r7-c22_Region5_1283763464.tif | B164: 7- | C164: 7 | E164: c22_ | F164: 22 | H164: 7 | I164: 22 | L164: 211750 | M164: 67375 | N164: 0 | O164: Tile_r7-c22_Region5_1283763464.tif | R164: 9625 | S164: 9625 | T164: Tile_r7-c22_Region5_1283763464.tif 211750 67375 0
A165: Tile_r7-c23_Region5_1283763464.tif | B165: 7- | C165: 7 | E165: c23_ | F165: 23 | H165: 7 | I165: 23 | L165: 221375 | M165: 67375 | N165: 0 | O165: Tile_r7-c23_Region5_1283763464.tif | R165: 9625 | S165: 9625 | T165: Tile_r7-c23_Region5_1283763464.tif 221375 67375 0
A166: Tile_r7-c24_Region5_1283763464.tif | B166: 7- | C166: 7 | E166: c24_ | F166: 24 | H166: 7 | I166: 24 | L166: 231000 | M166: 67375 | N166: 0 | O166: Tile_r7-c24_Region5_1283763464.tif | R166: 9625 | S166: 9625 | T166: Tile_r7-c24_Region5_1283763464.tif 231000 67375 0
A167: Tile_r7-c25_Region5_1283763464.tif | B167: 7- | C167: 7 | E167: c25_ | F167: 25 | H167: 7 | I167: 25 | L167: 240625 | M167: 67375 | N167: 0 | O167: Tile_r7-c25_Region5_1283763464.tif | R167: 9625 | S167: 9625 | T167: Tile_r7-c25_Region5_1283763464.tif 240625 67375 0
A168: Tile_r7-c26_Region5_1283763464.tif | B168: 7- | C168: 7 | E168: c26_ | F168: 26 | H168: 7 | I168: 26 | L168: 250250 | M168: 67375 | N168: 0 | O168: Tile_r7-c26_Region5_1283763464.tif | R168: 9625 | S168: 9625 | T168: Tile_r7-c26_Region5_1283763464.tif 250250 67375 0
A169: Tile_r7-c27_Region5_1283763464.tif | B169: 7- | C169: 7 | E169: c27_ | F169: 27 | H169: 7 | I169: 27 | L169: 259875 | M169: 67375 | N169: 0 | O169: Tile_r7-c27_Region5_1283763464.tif | R169: 9625 | S169: 9625 | T169: Tile_r7-c27_Region5_1283763464.tif 259875 67375 0
A170: Tile_r7-c28_Region5_1283763464.tif | B170: 7- | C170: 7 | E170: c28_ | F170: 28 | H170: 7 | I170: 28 | L170: 269500 | M170: 67375 | N170: 0 | O170: Tile_r7-c28_Region5_1283763464.tif | R170: 9625 | S170: 9625 | T170: Tile_r7-c28_Region5_1283763464.tif 269500 67375 0
A171: Tile_r8-c1_Region5_1283763464.tif | B171: 8- | C171: 8 | E171: c1_R | F171: 1 | H171: 8 | I171: 1 | L171: 9625 | M171: 77000 | N171: 0 | O171: Tile_r8-c1_Region5_1283763464.tif | R171: 9625 | S171: 9625 | T171: Tile_r8-c1_Region5_1283763464.tif 9625 77000 0
A172: Tile_r8-c2_Region5_1283763464.tif | B172: 8- | C172: 8 | E172: c2_R | F172: 2 | H172: 8 | I172: 2 | L172: 19250 | M172: 77000 | N172: 0 | O172: Tile_r8-c2_Region5_1283763464.tif | R172: 9625 | S172: 9625 | T172: Tile_r8-c2_Region5_1283763464.tif 19250 77000 0
A173: Tile_r8-c3_Region5_1283763464.tif | B173: 8- | C173: 8 | E173: c3_R | F173: 3 | H173: 8 | I173: 3 | L173: 28875 | M173: 77000 | N173: 0 | O173: Tile_r8-c3_Region5_1283763464.tif | R173: 9625 | S173: 9625 | T173: Tile_r8-c3_Region5_1283763464.tif 28875 77000 0
A174: Tile_r8-c4_Region5_1283763464.tif | B174: 8- | C174: 8 | E174: c4_R | F174: 4 | H174: 8 | I174: 4 | L174: 38500 | M174: 77000 | N174: 0 | O174: Tile_r8-c4_Region5_1283763464.tif | R174: 9625 | S174: 9625 | T174: Tile_r8-c4_Region5_1283763464.tif 38500 77000 0
A175: Tile_r8-c5_Region5_1283763464.tif | B175: 8- | C175: 8 | E175: c5_R | F175: 5 | H175: 8 | I175: 5 | L175: 48125 | M175: 77000 | N175: 0 | O175: Tile_r8-c5_Region5_1283763464.tif | R175: 9625 | S175: 9625 | T175: Tile_r8-c5_Region5_1283763464.tif 48125 77000 0
A176: Tile_r8-c6_Region5_1283763464.tif | B176: 8- | C176: 8 | E176: c6_R | F176: 6 | H176: 8 | I176: 6 | L176: 57750 | M176: 77000 | N176: 0 | O176: Tile_r8-c6_Region5_1283763464.tif | R176: 9625 | S176: 9625 | T176: Tile_r8-c6_Region5_1283763464.tif 57750 77000 0
A177: Tile_r8-c7_Region5_1283763464.tif | B177: 8- | C177: 8 | E177: c7_R | F177: 7 | H177: 8 | I177: 7 | L177: 67375 | M177: 77000 | N177: 0 | O177: Tile_r8-c7_Region5_1283763464.tif | R177: 9625 | S177: 9625 | T177: Tile_r8-c7_Region5_1283763464.tif 67375 77000 0
A178: Tile_r8-c8_Region5_1283763464.tif | B178: 8- | C178: 8 | E178: c8_R | F178: 8 | H178: 8 | I178: 8 | L178: 77000 | M178: 77000 | N178: 0 | O178: Tile_r8-c8_Region5_1283763464.tif | R178: 9625 | S178: 9625 | T178: Tile_r8-c8_Region5_1283763464.tif 77000 77000 0
A179: Tile_r8-c9_Region5_1283763464.tif | B179: 8- | C179: 8 | E179: c9_R | F179: 9 | H179: 8 | I179: 9 | L179: 86625 | M179: 77000 | N179: 0 | O179: Tile_r8-c9_Region5_1283763464.tif | R179: 9625 | S179: 9625 | T179: Tile_r8-c9_Region5_1283763464.tif 86625 77000 0
A180: Tile_r8-c10_Region5_1283763464.tif | B180: 8- | C180: 8 | E180: c10_ | F180: 10 | H180: 8 | I180: 10 | L180: 96250 | M180: 77000 | N180: 0 | O180: Tile_r8-c10_Region5_1283763464.tif | R180: 9625 | S180: 9625 | T180: Tile_r8-c10_Region5_1283763464.tif 96250 77000 0
A181: Tile_r8-c11_Region5_1283763464.tif | B181: 8- | C181: 8 | E181: c11_ | F181: 11 | H181: 8 | I181: 11 | L181: 105875 | M181: 77000 | N181: 0 | O181: Tile_r8-c11_Region5_1283763464.tif | R181: 9625 | S181: 9625 | T181: Tile_r8-c11_Region5_1283763464.tif 105875 77000 0
A182: Tile_r8-c12_Region5_1283763464.tif | B182: 8- | C182: 8 | E182: c12_ | F182: 12 | H182: 8 | I182: 12 | L182: 115500 | M182: 77000 | N182: 0 | O182: Tile_r8-c12_Region5_1283763464.tif | R182: 9625 | S182: 9625 | T182: Tile_r8-c12_Region5_1283763464.tif 115500 77000 0
A183: Tile_r8-c13_Region5_1283763464.tif | B183: 8- | C183: 8 | E183: c13_ | F183: 13 | H183: 8 | I183: 13 | L183: 125125 | M183: 77000 | N183: 0 | O183: Tile_r8-c13_Region5_1283763464.tif | R183: 9625 | S183: 9625 | T183: Tile_r8-c13_Region5_1283763464.tif 125125 77000 0
A184: Tile_r8-c14_Region5_1283763464.tif | B184: 8- | C184: 8 | E184: c14_ | F184: 14 | H184: 8 | I184: 14 | L184: 134750 | M184: 77000 | N184: 0 | O184: Tile_r8-c14_Region5_1283763464.tif | R184: 9625 | S184: 9625 | T184: Tile_r8-c14_Region5_1283763464.tif 134750 77000 0
A185: Tile_r8-c15_Region5_1283763464.tif | B185: 8- | C185: 8 | E185: c15_ | F185: 15 | H185: 8 | I185: 15 | L185: 144375 | M185: 77000 | N185: 0 | O185: Tile_r8-c15_Region5_1283763464.tif | R185: 9625 | S185: 9625 | T185: Tile_r8-c15_Region5_1283763464.tif 144375 77000 0
A186: Tile_r8-c16_Region5_1283763464.tif | B186: 8- | C186: 8 | E186: c16_ | F186: 16 | H186: 8 | I186: 16 | L186: 154000 | M186: 77000 | N186: 0 | O186: Tile_r8-c16_Region5_1283763464.tif | R186: 9625 | S186: 9625 | T186: Tile_r8-c16_Region5_1283763464.tif 154000 77000 0
A187: Tile_r8-c17_Region5_1283763464.tif | B187: 8- | C187: 8 | E187: c17_ | F187: 17 | H187: 8 | I187: 17 | L187: 163625 | M187: 77000 | N187: 0 | O187: Tile_r8-c17_Region5_1283763464.tif | R187: 9625 | S187: 9625 | T187: Tile_r8-c17_Region5_1283763464.tif 163625 77000 0
A188: Tile_r8-c18_Region5_1283763464.tif | B188: 8- | C188: 8 | E188: c18_ | F188: 18 | H188: 8 | I188: 18 | L188: 173250 | M188: 77000 | N188: 0 | O188: Tile_r8-c18_Region5_1283763464.tif | R188: 9625 | S188: 9625 | T188: Tile_r8-c18_Region5_1283763464.tif 173250 77000 0
A189: Tile_r8-c19_Region5_1283763464.tif | B189: 8- | C189: 8 | E189: c19_ | F189: 19 | H189: 8 | I189: 19 | L189: 182875 | M189: 77000 | N189: 0 | O189: Tile_r8-c19_Region5_1283763464.tif | R189: 9625 | S189: 9625 | T189: Tile_r8-c19_Region5_1283763464.tif 182875 77000 0
A190: Tile_r8-c20_Region5_1283763464.tif | B190: 8- | C190: 8 | E190: c20_ | F190: 20 | H190: 8 | I190: 20 | L190: 192500 | M190: 77000 | N190: 0 | O190: Tile_r8-c20_Region5_1283763464.tif | R190: 9625 | S190: 9625 | T190: Tile_r8-c20_Region5_1283763464.tif 192500 77000 0
A191: Tile_r8-c21_Region5_1283763464.tif | B191: 8- | C191: 8 | E191: c21_ | F191: 21 | H191: 8 | I191: 21 | L191: 202125 | M191: 77000 | N191: 0 | O191: Tile_r8-c21_Region5_1283763464.tif | R191: 9625 | S191: 9625 | T191: Tile_r8-c21_Region5_1283763464.tif 202125 77000 0
A192: Tile_r8-c22_Region5_1283763464.tif | B192: 8- | C192: 8 | E192: c22_ | F192: 22 | H192: 8 | I192: 22 | L192: 211750 | M192: 77000 | N192: 0 | O192: Tile_r8-c22_Region5_1283763464.tif | R192: 9625 | S192: 9625 | T192: Tile_r8-c22_Region5_1283763464.tif 211750 77000 0
A193: Tile_r8-c23_Region5_1283763464.tif | B193: =MID(A193,7,2) -> 8- | C193: 8 | E193: =MID(A193,9,4) -> c23_ | F193: 23 | H193: 8 | I193: 23 | L193: =I193*R193 -> 221375 | M193: =H193*S193 -> 77000 | N193: 0 | O193: Tile_r8-c23_Region5_1283763464.tif | R193: 9625 | S193: 9625 | T193: =CONCATENATE(O193," ", L193," ",M193," ",N193) -> Tile_r8-c23_Region5_1283763464.tif 221375 77000 0
A194: Tile_r8-c24_Region5_1283763464.tif | B194: 8- | C194: 8 | E194: c24_ | F194: 24 | H194: 8 | I194: 24 | L194: 231000 | M194: 77000 | N194: 0 | O194: Tile_r8-c24_Region5_1283763464.tif | R194: 9625 | S194: 9625 | T194: Tile_r8-c24_Region5_1283763464.tif 231000 77000 0
A195: Tile_r8-c25_Region5_1283763464.tif | B195: 8- | C195: 8 | E195: c25_ | F195: 25 | H195: 8 | I195: 25 | L195: 240625 | M195: 77000 | N195: 0 | O195: Tile_r8-c25_Region5_1283763464.tif | R195: 9625 | S195: 9625 | T195: Tile_r8-c25_Region5_1283763464.tif 240625 77000 0
A196: Tile_r8-c26_Region5_1283763464.tif | B196: 8- | C196: 8 | E196: c26_ | F196: 26 | H196: 8 | I196: 26 | L196: 250250 | M196: 77000 | N196: 0 | O196: Tile_r8-c26_Region5_1283763464.tif | R196: 9625 | S196: 9625 | T196: Tile_r8-c26_Region5_1283763464.tif 250250 77000 0
A197: Tile_r8-c27_Region5_1283763464.tif | B197: 8- | C197: 8 | E197: c27_ | F197: 27 | H197: 8 | I197: 27 | L197: 259875 | M197: 77000 | N197: 0 | O197: Tile_r8-c27_Region5_1283763464.tif | R197: 9625 | S197: 9625 | T197: Tile_r8-c27_Region5_1283763464.tif 259875 77000 0
A198: Tile_r8-c28_Region5_1283763464.tif | B198: 8- | C198: 8 | E198: c28_ | F198: 28 | H198: 8 | I198: 28 | L198: 269500 | M198: 77000 | N198: 0 | O198: Tile_r8-c28_Region5_1283763464.tif | R198: 9625 | S198: 9625 | T198: Tile_r8-c28_Region5_1283763464.tif 269500 77000 0
A199: Tile_r9-c1_Region5_1283763464.tif | B199: 9- | C199: 9 | E199: c1_R | F199: 1 | H199: 9 | I199: 1 | L199: 9625 | M199: 86625 | N199: 0 | O199: Tile_r9-c1_Region5_1283763464.tif | R199: 9625 | S199: 9625 | T199: Tile_r9-c1_Region5_1283763464.tif 9625 86625 0
A200: Tile_r9-c2_Region5_1283763464.tif | B200: 9- | C200: 9 | E200: c2_R | F200: 2 | H200: 9 | I200: 2 | L200: 19250 | M200: 86625 | N200: 0 | O200: Tile_r9-c2_Region5_1283763464.tif | R200: 9625 | S200: 9625 | T200: Tile_r9-c2_Region5_1283763464.tif 19250 86625 0
... 283 more rows
